{"text_format":"1","workbook":"xlsx","n_sheets":10,"sheets":["Skema 1","Skema 2","Skema 3","Skema 4","Skema 5","Skema 6","Skema 7","Rapport","Rapport SGH","Afstemning af ikke fordelte"],"not_rendered":{"charts":0,"images":0,"macros":1,"external_links":0,"defined_names":22,"comments":0,"pivot_tables":0},"unopened":[],"bounds":{"document_bytes":16777216,"sheet_cells":100000,"rows_first":2000,"rows_last":500,"rows_between":2000,"halvings":0,"cell_chars":16384,"cell_head_chars":4096},"cells_cut":0,"cells_raw":0,"read":"whole","date_system":"1900"}

{"sheet":"Skema 1","index":0,"n_rows":35,"n_cols":9,"rows_kept":35,"cut":false,"hidden":false,"merged":[[1,1,2,8]]}
["Region Sjælland, psykiatriske sygehuse."]
[null,"Skema 1: Udgifter og indtægter på sygehusene/enhederne, eksklusiv omkostningssted 0001, Fælleskonto. (1.000 kr.)"]
[]
[]
["Sygehus",null,2023,2022,2021,2020,"Δ2022-2023","% afvigelse","Begrundelse"]
["Region Sjælland, Voksen psykiatrien"]
["Region Sjælland, Voksen psykiatrien","Hovedart 1: Lønninger",{"$f":"958061-13580","v":944481},{"$f":"931658-12367","v":919291},{"$f":"869826-11566","v":858260},{"$f":"841185-11628","v":829557},{"$f":"IF(ISERROR(C7- D7)=TRUE,\"\",C7 - D7)","v":25190},{"$f":"IF(ISERROR((((C7- D7)/D7)*100)=TRUE),\"\",IF((((C7- D7)/D7)*100)<-7,FIXED(((C7- D7)/D7)*100, 1,TRUE) &\"%\" & \"▼\",IF((((C7- D7)/D7)*100)>7,FIXED(((C7- D7)/D7)*100, 1,TRUE) &\"%\" &\"▲\",FIXED(((C7- D7)/D7)*100, 1,TRUE)&\"%\")))","v":"2,7%"}]
["Region Sjælland, Voksen psykiatrien","Hovedart 2: Varekøb",29733,35853,36875,46158,-6120,"-17,1%▼","Færre anskaffelser i 2023 (Bl.a. Kidnakken)"]
["Region Sjælland, Voksen psykiatrien","Hovedart 4: Tjenesteydelser m.v. ",157971,176526,195928,173302,-18555,"-10,5%▼","Fald i udgifter til eksternt personale, læge og sygeplejevikarer"]
["Region Sjælland, Voksen psykiatrien","Hovedart 5: Tilskud og overførsler",31,195,43,168,-164,"-84,1%▼","Der er tale om små bevægelser"]
["Region Sjælland, Voksen psykiatrien","Hovedart 6: Finansudgifter",null,null,0,-152,0,""]
["Region Sjælland, Voksen psykiatrien","Hovedart 7: Indtægter",-26644,-27249,-30338,-17116,605,"-2,2%"]
["Region Sjælland, Voksen psykiatrien","Hovedart 8: Finansindtægter",0,null,null,0,0,""]
["Region Sjælland, Voksen psykiatrien","Hovedart 9: Interne udgifter og indtægter",{"$f":"61941+13580","v":75521},{"$f":"63242+12367","v":75609},{"$f":"61494+11566","v":73060},{"$f":"64482+11628","v":76110},-88,"-0,1%"]
["Region Sjælland, Voksen psykiatrien","I alt",{"$f":"SUMIFS((C7:C14),(A7:A14),A15)","v":1181093},{"$f":"SUMIFS((D7:D14),(A7:A14),A15)","v":1180225},{"$f":"SUMIFS((E7:E14),(A7:A14),A15)","v":1133828},{"$f":"SUMIFS((F7:F14),(A7:A14),A15)","v":1108027},868,"0,1%"]
["Region Sjælland, Børn-unge psykiatrien",null,null,null,null,null,0,""]
["Region Sjælland, Børn-unge psykiatrien","Hovedart 1: Lønninger",{"$f":"222299-2760","v":219539},211224,{"$f":"212531-2317","v":210214},{"$f":"193181-2161","v":191020},8315,"3,9%"]
["Region Sjælland, Børn-unge psykiatrien","Hovedart 2: Varekøb",6335,6768,6803,7034,-433,"-6,4%"]
["Region Sjælland, Børn-unge psykiatrien","Hovedart 4: Tjenesteydelser m.v. ",27150,20930,7815,19354,6220,"29,7%▲","SATS pulje projekter B&U. Forskydninger mellem årene."]
["Region Sjælland, Børn-unge psykiatrien","Hovedart 5: Tilskud og overførsler",0,29,4,0,-29,"-100,0%▼","Der er tale om små bevægelser"]
["Region Sjælland, Børn-unge psykiatrien","Hovedart 6: Finansudgifter",0,null,0,-13,0,""]
["Region Sjælland, Børn-unge psykiatrien","Hovedart 7: Indtægter",-19383,-6653,-4901,-18332,-12730,"191,3%▲","Indtægter i 2023 vedr. satspuljeprojekter B&U. (Afprøvning af fremskudt regional funktion i B&U). BED/Bakkehus. Forskydninger mellem årene. "]
["Region Sjælland, Børn-unge psykiatrien","Hovedart 8: Finansindtægter",0,null,0,0,0,""]
["Region Sjælland, Børn-unge psykiatrien","Hovedart 9: Interne udgifter og indtægter",{"$f":"3607+2760","v":6367},5599,{"$f":"4815+2317","v":7132},{"$f":"4713+2161","v":6874},768,"13,7%▲","Barselspulje andel B&U"]
["Region Sjælland, Børn-unge psykiatrien","I alt",{"$f":"SUMIFS((C7:C24),(A7:A24),A25)","v":240008},{"$f":"SUMIFS((D7:D24),(A7:A24),A25)","v":237897},{"$f":"SUMIFS((E7:E24),(A7:A24),A25)","v":227067},{"$f":"SUMIFS((F7:F24),(A7:A24),A25)","v":205937},2111,"0,9%"]
["Ikke fordelte udgifter i Region Sjælland, psykiatri",null,null,null,null,null,0,""]
["Ikke fordelte udgifter i Region Sjælland, psykiatri","Hovedart 1: Lønninger",null,null,null,null,0,""]
["Ikke fordelte udgifter i Region Sjælland, psykiatri","Hovedart 2: Varekøb",null,null,null,null,0,""]
["Ikke fordelte udgifter i Region Sjælland, psykiatri","Hovedart 4: Tjenesteydelser m.v. ",null,null,null,null,0,""]
["Ikke fordelte udgifter i Region Sjælland, psykiatri","Hovedart 5: Tilskud og overførsler",null,null,null,null,0,""]
["Ikke fordelte udgifter i Region Sjælland, psykiatri","Hovedart 6: Finansudgifter",null,null,null,null,0,""]
["Ikke fordelte udgifter i Region Sjælland, psykiatri","Hovedart 7: Indtægter",null,null,null,null,0,""]
["Ikke fordelte udgifter i Region Sjælland, psykiatri","Hovedart 8: Finansindtægter",null,null,null,null,0,""]
["Ikke fordelte udgifter i Region Sjælland, psykiatri","Hovedart 9: Interne udgifter og indtægter",null,null,null,null,0,""]
["Ikke fordelte udgifter i Region Sjælland, psykiatri","I alt",{"$f":"SUMIFS((C7:C34),(A7:A34),A35)","v":0},{"$f":"SUMIFS((D7:D34),(A7:A34),A35)","v":0},{"$f":"SUMIFS((E7:E34),(A7:A34),A35)","v":0},{"$f":"SUMIFS((F7:F34),(A7:A34),A35)","v":0},0,""]

{"sheet":"Skema 2","index":1,"n_rows":35,"n_cols":9,"rows_kept":35,"cut":false,"hidden":false,"merged":[[1,1,2,8]]}
["Region Sjælland, psykiatriske sygehuse."]
[null,"Skema 2: Fællesudgifter og -indtægter vedrørende sygehusene.\n(1.000 kr.)"]
[]
[]
["Sygehus",null,2023,2022,2021,2020,"Δ2022-2023","% afvigelse","Begrundelse"]
["Region Sjælland, Voksen psykiatrien"]
["Region Sjælland, Voksen psykiatrien","Hovedart 1: Lønninger",42331.266562028097,37072.574352853,44719.124819999997,42678.779580000002,{"$f":"IF(ISERROR(C7- D7)=TRUE,\"\",C7 - D7)","v":5258.6922091750967},{"$f":"IF(ISERROR((((C7- D7)/D7)*100)=TRUE),\"\",IF((((C7- D7)/D7)*100)<-7,FIXED(((C7- D7)/D7)*100, 1,TRUE) &\"%\" & \"▼\",IF((((C7- D7)/D7)*100)>7,FIXED(((C7- D7)/D7)*100, 1,TRUE) &\"%\" &\"▲\",FIXED(((C7- D7)/D7)*100, 1,TRUE)&\"%\")))","v":"14,2%▲"},"Stigningen kan henføres til øget forbrug af ydelser, herunder transport, arealpleje mv"]
["Region Sjælland, Voksen psykiatrien","Hovedart 2: Varekøb",138655.51946038299,136401.01862244701,133030.00795,136142.07968,2254.5008379359788,"1,7%"]
["Region Sjælland, Voksen psykiatrien","Hovedart 4: Tjenesteydelser m.v. ",48979.199010629702,43817.105490011803,45470.724119999999,44207.074189999999,5162.0935206178983,"11,8%▲","Stigningen kan henføres til øget forbrug af ydelser, herunder transport, arealpleje mv"]
["Region Sjælland, Voksen psykiatrien","Hovedart 5: Tilskud og overførsler",null,null,131.8323,134.25679,0,""]
["Region Sjælland, Voksen psykiatrien","Hovedart 6: Finansudgifter",null,null,0,-17.959890000000001,0,""]
["Region Sjælland, Voksen psykiatrien","Hovedart 7: Indtægter",-16287.1490505764,-16181.1692260901,-17418.317179999998,-14968.085349999999,-105.97982448629955,"0,7%"]
["Region Sjælland, Voksen psykiatrien","Hovedart 8: Finansindtægter",-53.093283671107898,null,null,null,-53.093283671107898,""]
["Region Sjælland, Voksen psykiatrien","Hovedart 9: Interne udgifter og indtægter",-156025.515947696,-152188.834089032,-156712.56047,-160856.93836999999,-3836.6818586640002,"2,5%"]
["Region Sjælland, Voksen psykiatrien","I alt",{"$f":"SUMIFS((C7:C14),(A7:A14),A15)","v":57600.226751097274},{"$f":"SUMIFS((D7:D14),(A7:A14),A15)","v":48920.695150189713},{"$f":"SUMIFS((E7:E14),(A7:A14),A15)","v":49220.811539999995},{"$f":"SUMIFS((F7:F14),(A7:A14),A15)","v":47319.20663000003},8679.5316009075614,"17,7%▲"]
["Region Sjælland, Børn-unge psykiatrien",null,null,null,null,null,0,""]
["Region Sjælland, Børn-unge psykiatrien","Hovedart 1: Lønninger",8602.7564941963101,7475.0997072923901,8965.2987300000004,7930.4693200000002,1127.65678690392,"15,1%▲","Stigningen kan henføres til øget forbrug af ydelser, herunder transport, arealpleje mv"]
["Region Sjælland, Børn-unge psykiatrien","Hovedart 2: Varekøb",28178.2183092993,27503.113343963701,26669.881549999998,25297.597399999999,675.10496533559854,"2,5%"]
["Region Sjælland, Børn-unge psykiatrien","Hovedart 4: Tjenesteydelser m.v. ",9953.7801863739096,8835.0279995481596,9115.9795099999992,8214.4533699999993,1118.75218682575,"12,7%▲","Stigningen kan henføres til øget forbrug af ydelser, herunder transport, arealpleje mv"]
["Region Sjælland, Børn-unge psykiatrien","Hovedart 5: Tilskud og overførsler",null,null,26.4297651996594,24.947279999999999,0,""]
["Region Sjælland, Børn-unge psykiatrien","Hovedart 6: Finansudgifter",null,null,null,-3.3372600000000001,0,""]
["Region Sjælland, Børn-unge psykiatrien","Hovedart 7: Indtægter",-3309.9500356664098,-3262.6774767338602,-3492.0275742951999,-2781.33401,-47.2725589325496,"1,4%"]
["Region Sjælland, Børn-unge psykiatrien","Hovedart 8: Finansindtægter",-10.7898635688246,null,null,null,-10.7898635688246,""]
["Region Sjælland, Børn-unge psykiatrien","Hovedart 9: Interne udgifter og indtægter",-31708.229627681099,-30686.477241215602,-31417.764223705501,-29890.053650000002,-1021.7523864654977,"3,3%"]
["Region Sjælland, Børn-unge psykiatrien","I alt",{"$f":"SUMIFS((C7:C24),(A7:A24),A25)","v":11705.78546295319},{"$f":"SUMIFS((D7:D24),(A7:A24),A25)","v":9864.086332854793},{"$f":"SUMIFS((E7:E24),(A7:A24),A25)","v":9867.7977571989577},{"$f":"SUMIFS((F7:F24),(A7:A24),A25)","v":8792.7424500000052},1841.6991300983973,"18,7%▲"]
["Ikke fordelte udgifter i Region Sjælland, psykiatri",null,null,null,null,null,0,""]
["Ikke fordelte udgifter i Region Sjælland, psykiatri","Hovedart 1: Lønninger",0,83.961626043264602,105.03805,{"$f":"79.67329+14.8047","v":94.477989999999991},-83.961626043264602,"-100,0%▼","Uvæsentlig beløb"]
["Ikke fordelte udgifter i Region Sjælland, psykiatri","Hovedart 2: Varekøb",null,223.89766944870601,945.34243000000004,{"$f":"15.93466+2.96094","v":18.895599999999998},-223.89766944870601,"-100,0%▼","Uvæsentlig beløb"]
["Ikke fordelte udgifter i Region Sjælland, psykiatri","Hovedart 4: Tjenesteydelser m.v. ",43807.346678566901,89464.172917809497,86573.033420000007,{"$f":"58242.43246+4139.64637+844.5369+156.92984","v":63383.545570000002},-45656.826239242597,"-51,0%▼","Kan primært henføres til reguleringer vedr. tidligere år på udenregional samt højt specialiseret behandling"]
["Ikke fordelte udgifter i Region Sjælland, psykiatri","Hovedart 5: Tilskud og overførsler",null,null,null,null,0,""]
["Ikke fordelte udgifter i Region Sjælland, psykiatri","Hovedart 6: Finansudgifter",null,null,null,null,0,""]
["Ikke fordelte udgifter i Region Sjælland, psykiatri","Hovedart 7: Indtægter",-136519.91741371801,-114042.0505,-123656.10937000001,{"$f":"-34104.0679-95371.80496+254.95453+47.37505","v":-129173.54328},-22477.866913718011,"19,7%▲","Stigningen kan henføres til takstindtægterne"]
["Ikke fordelte udgifter i Region Sjælland, psykiatri","Hovedart 8: Finansindtægter",null,null,null,null,0,""]
["Ikke fordelte udgifter i Region Sjælland, psykiatri","Hovedart 9: Interne udgifter og indtægter",-105.331360068538,null,280.10145999999997,{"$f":"446.17044+82.90633","v":529.07677000000001},-105.331360068538,""]
["Ikke fordelte udgifter i Region Sjælland, psykiatri","I alt",{"$f":"SUMIFS((C7:C34),(A7:A34),A35)","v":-92817.902095219644},{"$f":"SUMIFS((D7:D34),(A7:A34),A35)","v":-24270.018286698527},{"$f":"SUMIFS((E7:E34),(A7:A34),A35)","v":-35752.594009999993},{"$f":"SUMIFS((F7:F34),(A7:A34),A35)","v":-65147.547349999993},-68547.883808521117,"282,4%▲"]

{"sheet":"Skema 3","index":2,"n_rows":26,"n_cols":9,"rows_kept":26,"cut":false,"hidden":false,"merged":[[1,1,2,8]]}
["Region Sjælland, psykiatriske sygehuse."]
[null,"Skema 3:Regionale fællesudgifter og -indtægter. (1.000 kr.)"]
[]
[]
["Sygehus",null,2023,2022,2021,2020,"Δ2022-2023","% afvigelse","Begrundelse"]
["Region Sjælland, Voksen psykiatrien"]
["Region Sjælland, Voksen psykiatrien","1.70.50: Andel af fællesudgifter",68312.931216115903,65073.261732575498,61154.817069999997,59527.150289999998,{"$f":"IF(ISERROR(C7- D7)=TRUE,\"\",C7 - D7)","v":3239.6694835404051},{"$f":"IF(ISERROR((((C7- D7)/D7)*100)=TRUE),\"\",IF((((C7- D7)/D7)*100)<-7,FIXED(((C7- D7)/D7)*100, 1,TRUE) &\"%\" & \"▼\",IF((((C7- D7)/D7)*100)>7,FIXED(((C7- D7)/D7)*100, 1,TRUE) &\"%\" &\"▲\",FIXED(((C7- D7)/D7)*100, 1,TRUE)&\"%\")))","v":"5,0%"}]
["Region Sjælland, Voksen psykiatrien","1.60.40: Andel af central administration af sundhed (til og med 2019)",null,null,null,null,0,""]
["Region Sjælland, Voksen psykiatrien","1.60.41: Andel af øvrige udgifter og indtægter",null,null,null,null,0,""]
["Region Sjælland, Voksen psykiatrien","1.50.33: Andel af central administration af sundhed (ekskl. psykiatri)",null,null,null,null,0,""]
["Region Sjælland, Voksen psykiatrien","1.50.35: Administration af det psykiatriske område (kun central del)",null,null,null,null,0,""]
["Region Sjælland, Voksen psykiatrien","I alt",{"$f":"SUMIFS((C7:C11),(A7:A11),A12)","v":68312.931216115903},{"$f":"SUMIFS((D7:D11),(A7:A11),A12)","v":65073.261732575498},{"$f":"SUMIFS((E7:E11),(A7:A11),A12)","v":61154.817069999997},{"$f":"SUMIFS((F7:F11),(A7:A11),A12)","v":59527.150289999998},3239.6694835404051,"5,0%"]
["Region Sjælland, Børn-unge psykiatrien",null,null,null,null,null,0,""]
["Region Sjælland, Børn-unge psykiatrien","1.70.50: Andel af fællesudgifter",13882.870993144001,13046.7614181231,12260.329470000001,11061.19347,836.10957502090059,"6,4%"]
["Region Sjælland, Børn-unge psykiatrien","1.60.40: Andel af central administration af sundhed (til og med 2019)",null,null,null,null,0,""]
["Region Sjælland, Børn-unge psykiatrien","1.60.41: Andel af øvrige udgifter og indtægter",null,null,null,null,0,""]
["Region Sjælland, Børn-unge psykiatrien","1.50.33: Andel af central administration af sundhed (ekskl. psykiatri)",null,null,null,null,0,""]
["Region Sjælland, Børn-unge psykiatrien","1.50.35: Administration af det psykiatriske område (kun central del)",null,null,null,null,0,""]
["Region Sjælland, Børn-unge psykiatrien","I alt",{"$f":"SUMIFS((C7:C18),(A7:A18),A19)","v":13882.870993144001},{"$f":"SUMIFS((D7:D18),(A7:A18),A19)","v":13046.7614181231},{"$f":"SUMIFS((E7:E18),(A7:A18),A19)","v":12260.329470000001},{"$f":"SUMIFS((F7:F18),(A7:A18),A19)","v":11061.19347},836.10957502090059,"6,4%"]
["Ikke fordelte udgifter i Region Sjælland, psykiatri",null,null,null,null,null,0,""]
["Ikke fordelte udgifter i Region Sjælland, psykiatri","1.70.50: Andel af fællesudgifter",null,null,null,null,0,""]
["Ikke fordelte udgifter i Region Sjælland, psykiatri","1.60.40: Andel af central administration af sundhed (til og med 2019)",null,null,null,null,0,""]
["Ikke fordelte udgifter i Region Sjælland, psykiatri","1.60.41: Andel af øvrige udgifter og indtægter",null,null,null,null,0,""]
["Ikke fordelte udgifter i Region Sjælland, psykiatri","1.50.33: Andel af central administration af sundhed (ekskl. psykiatri)",null,null,null,null,0,""]
["Ikke fordelte udgifter i Region Sjælland, psykiatri","1.50.35: Administration af det psykiatriske område (kun central del)",null,null,null,null,0,""]
["Ikke fordelte udgifter i Region Sjælland, psykiatri","I alt",{"$f":"SUMIFS((C7:C25),(A7:A25),A26)","v":0},{"$f":"SUMIFS((D7:D25),(A7:A25),A26)","v":0},{"$f":"SUMIFS((E7:E25),(A7:A25),A26)","v":0},{"$f":"SUMIFS((F7:F25),(A7:A25),A26)","v":0},0,""]

{"sheet":"Skema 4","index":3,"n_rows":20,"n_cols":9,"rows_kept":20,"cut":false,"hidden":false,"merged":[[1,1,2,8]]}
["Region Sjælland, psykiatriske sygehuse."]
[null,"Skema 4: Udgifter og indtægter til og fra psykiatriske afdelinger konteret på somatiske sygehuse. (1.000 kr.)"]
[]
[]
["Sygehus",null,2023,2022,2021,2020,"Δ2022-2023","% afvigelse","Begrundelse"]
["Region Sjælland, Voksen psykiatrien"]
["Region Sjælland, Voksen psykiatrien","Korrektion",null,null,null,null,{"$f":"IF(ISERROR(C7- D7)=TRUE,\"\",C7 - D7)","v":0},{"$f":"IF(ISERROR((((C7- D7)/D7)*100)=TRUE),\"\",IF((((C7- D7)/D7)*100)<-7,FIXED(((C7- D7)/D7)*100, 1,TRUE) &\"%\" & \"▼\",IF((((C7- D7)/D7)*100)>7,FIXED(((C7- D7)/D7)*100, 1,TRUE) &\"%\" &\"▲\",FIXED(((C7- D7)/D7)*100, 1,TRUE)&\"%\")))","v":""}]
["Region Sjælland, Voksen psykiatrien","Lønudg. på psyk. afd.,somatiske sygehuse",null,null,null,null,0,""]
["Region Sjælland, Voksen psykiatrien","Øvrige udg. til psyk. afd.,somatiske sygehuse",null,null,null,null,0,""]
["Region Sjælland, Voksen psykiatrien","I alt",{"$f":"SUMIFS((C7:C9),(A7:A9),A10)","v":0},{"$f":"SUMIFS((D7:D9),(A7:A9),A10)","v":0},{"$f":"SUMIFS((E7:E9),(A7:A9),A10)","v":0},{"$f":"SUMIFS((F7:F9),(A7:A9),A10)","v":0},0,""]
["Region Sjælland, Børn-unge psykiatrien",null,null,null,null,null,0,""]
["Region Sjælland, Børn-unge psykiatrien","Korrektion",null,null,null,null,0,""]
["Region Sjælland, Børn-unge psykiatrien","Lønudg. på psyk. afd.,somatiske sygehuse",null,null,null,null,0,""]
["Region Sjælland, Børn-unge psykiatrien","Øvrige udg. til psyk. afd.,somatiske sygehuse",null,null,null,null,0,""]
["Region Sjælland, Børn-unge psykiatrien","I alt",{"$f":"SUMIFS((C7:C14),(A7:A14),A15)","v":0},{"$f":"SUMIFS((D7:D14),(A7:A14),A15)","v":0},{"$f":"SUMIFS((E7:E14),(A7:A14),A15)","v":0},{"$f":"SUMIFS((F7:F14),(A7:A14),A15)","v":0},0,""]
["Ikke fordelte udgifter i Region Sjælland, psykiatri",null,null,null,null,null,0,""]
["Ikke fordelte udgifter i Region Sjælland, psykiatri","Korrektion",null,null,null,null,0,""]
["Ikke fordelte udgifter i Region Sjælland, psykiatri","Lønudg. på psyk. afd.,somatiske sygehuse",null,null,null,null,0,""]
["Ikke fordelte udgifter i Region Sjælland, psykiatri","Øvrige udg. til psyk. afd.,somatiske sygehuse",null,null,null,null,0,""]
["Ikke fordelte udgifter i Region Sjælland, psykiatri","I alt",{"$f":"SUMIFS((C7:C19),(A7:A19),A20)","v":0},{"$f":"SUMIFS((D7:D19),(A7:A19),A20)","v":0},{"$f":"SUMIFS((E7:E19),(A7:A19),A20)","v":0},{"$f":"SUMIFS((F7:F19),(A7:A19),A20)","v":0},0,""]

{"sheet":"Skema 5","index":4,"n_rows":20,"n_cols":9,"rows_kept":20,"cut":false,"hidden":false,"merged":[[1,1,2,8]]}
["Region Sjælland, psykiatriske sygehuse."]
[null,"Skema 5: Leasing- og huslejeudgifter. (1.000 kr.)"]
[]
[]
["Sygehus",null,2023,2022,2021,2020,"Δ2022-2023","% afvigelse","Begrundelse"]
["Region Sjælland, Voksen psykiatrien"]
["Region Sjælland, Voksen psykiatrien","Andre udgifter",null,null,null,null,{"$f":"IF(ISERROR(C7- D7)=TRUE,\"\",C7 - D7)","v":0},{"$f":"IF(ISERROR((((C7- D7)/D7)*100)=TRUE),\"\",IF((((C7- D7)/D7)*100)<-7,FIXED(((C7- D7)/D7)*100, 1,TRUE) &\"%\" & \"▼\",IF((((C7- D7)/D7)*100)>7,FIXED(((C7- D7)/D7)*100, 1,TRUE) &\"%\" &\"▲\",FIXED(((C7- D7)/D7)*100, 1,TRUE)&\"%\")))","v":""}]
["Region Sjælland, Voksen psykiatrien","Leasing- og lejeudgifter",{"$f":"833+2814","v":3647},2313,{"$f":"367+480","v":847},{"$f":"214+653","v":867},1334,"57,7%▲","Stigning vedrører tildeling af fællesudgifter fra regionen."]
["Region Sjælland, Voksen psykiatrien","Huslejeudgifter",{"$f":"8969+490","v":9459},7214,{"$f":"6122+75","v":6197},{"$f":"5133+73","v":5206},2245,"31,1%▲","Ændringer i lejemål i Psykiatrien, samt stigining i fællesudgifter fra regionen."]
["Region Sjælland, Voksen psykiatrien","I alt",{"$f":"SUMIFS((C7:C9),(A7:A9),A10)","v":13106},{"$f":"SUMIFS((D7:D9),(A7:A9),A10)","v":9527},{"$f":"SUMIFS((E7:E9),(A7:A9),A10)","v":7044},{"$f":"SUMIFS((F7:F9),(A7:A9),A10)","v":6073},3579,"37,6%▲"]
["Region Sjælland, Børn-unge psykiatrien",null,null,null,null,null,0,""]
["Region Sjælland, Børn-unge psykiatrien","Andre udgifter",null,null,null,null,0,""]
["Region Sjælland, Børn-unge psykiatrien","Leasing- og lejeudgifter",{"$f":"131+572","v":703},550,{"$f":"64+96","v":160},{"$f":"47+121","v":168},153,"27,8%▲","Stigning vedrører tildeling af fællesudgifter fra regionen."]
["Region Sjælland, Børn-unge psykiatrien","Huslejeudgifter",{"$f":"368+100","v":468},547,{"$f":"538+15","v":553},{"$f":"110+14","v":124},-79,"-14,4%▼","Fald i huslejeudgifter i B&U"]
["Region Sjælland, Børn-unge psykiatrien","I alt",{"$f":"SUMIFS((C7:C14),(A7:A14),A15)","v":1171},{"$f":"SUMIFS((D7:D14),(A7:A14),A15)","v":1097},{"$f":"SUMIFS((E7:E14),(A7:A14),A15)","v":713},{"$f":"SUMIFS((F7:F14),(A7:A14),A15)","v":292},74,"6,7%"]
["Ikke fordelte udgifter i Region Sjælland, psykiatri",null,null,null,null,null,0,""]
["Ikke fordelte udgifter i Region Sjælland, psykiatri","Andre udgifter",null,null,null,null,0,""]
["Ikke fordelte udgifter i Region Sjælland, psykiatri","Leasing- og lejeudgifter",null,null,null,null,0,""]
["Ikke fordelte udgifter i Region Sjælland, psykiatri","Huslejeudgifter",null,null,null,null,0,""]
["Ikke fordelte udgifter i Region Sjælland, psykiatri","I alt",{"$f":"SUMIFS((C7:C19),(A7:A19),A20)","v":0},{"$f":"SUMIFS((D7:D19),(A7:A19),A20)","v":0},{"$f":"SUMIFS((E7:E19),(A7:A19),A20)","v":0},{"$f":"SUMIFS((F7:F19),(A7:A19),A20)","v":0},0,""]

{"sheet":"Skema 6","index":5,"n_rows":155,"n_cols":9,"rows_kept":155,"cut":false,"hidden":false,"merged":[[1,1,2,8]]}
["Region Sjælland, psykiatriske sygehuse."]
[null,"Skema 6: Udgifter til andet end patientbehandling. (1.000 kr.)"]
[]
[]
["Sygehus",null,2023,2022,2021,2020,"Δ2022-2023","% afvigelse","Begrundelse"]
["Region Sjælland, Voksen psykiatrien"]
["Region Sjælland, Voksen psykiatrien","Skema 6.1: Center for voldsramte (Bispebjerg)",null,null,null,null,{"$f":"IF(ISERROR(C7- D7)=TRUE,\"\",C7 - D7)","v":0},{"$f":"IF(ISERROR((((C7- D7)/D7)*100)=TRUE),\"\",IF((((C7- D7)/D7)*100)<-7,FIXED(((C7- D7)/D7)*100, 1,TRUE) &\"%\" & \"▼\",IF((((C7- D7)/D7)*100)>7,FIXED(((C7- D7)/D7)*100, 1,TRUE) &\"%\" &\"▲\",FIXED(((C7- D7)/D7)*100, 1,TRUE)&\"%\")))","v":""}]
["Region Sjælland, Voksen psykiatrien","Skema 6.2: Ventilatørbistand i hjemmet, respiratorpatienter",null,null,null,null,0,""]
["Region Sjælland, Voksen psykiatrien","Skema 6.3: Blodprøvetagning i eget hjem",null,null,null,null,0,""]
["Region Sjælland, Voksen psykiatrien","Skema 6.4: Psykinfo + pårørende",{"$f":"8883+425","v":9308},{"$f":"9566+1063","v":10629},{"$f":"9285+8","v":9293},{"$f":"9079+504","v":9583},-1321,"-12,4%▼","LUP Psykiatri 2021/2022 bogført i 2022"]
["Region Sjælland, Voksen psykiatrien","Skema 6.5: Leveret udstyr til patienter i eget hjem, ilt og sonderemedier",null,null,null,null,0,""]
["Region Sjælland, Voksen psykiatrien","Skema 6.6: Montebello (Nordsjællands Hospitaler)",null,null,null,null,0,""]
["Region Sjælland, Voksen psykiatrien","Skema 6.7: Satspulje korrektioner mellem år",null,null,null,null,0,""]
["Region Sjælland, Voksen psykiatrien","Skema 6.8: Klinisk farmakologisk rådgivning af praksissektoren",null,null,null,null,0,""]
["Region Sjælland, Voksen psykiatrien","Skema 6.9: Tandregulering ifm. operation",null,null,null,null,0,""]
["Region Sjælland, Voksen psykiatrien","Skema 6.10: Giftlinjen",null,null,null,null,0,""]
["Region Sjælland, Voksen psykiatrien","Skema 6.11: Tjenestemandspensioner",null,null,null,null,0,""]
["Region Sjælland, Voksen psykiatrien","Skema 6.12: Art 4.6 Betalinger til staten",null,null,null,null,0,""]
["Region Sjælland, Voksen psykiatrien","Skema 6.13: Art 4.7 Betalinger til kommuner",null,null,null,null,0,""]
["Region Sjælland, Voksen psykiatrien","Skema 6.14: Art 4.8 Betalinger til andre regioner",null,null,null,null,0,""]
["Region Sjælland, Voksen psykiatrien","Skema 6.15: Art 7.6 Betalinger fra staten",null,null,null,null,0,""]
["Region Sjælland, Voksen psykiatrien","Skema 6.16: Art 7.7 Betalinger fra kommuner",null,null,null,null,0,""]
["Region Sjælland, Voksen psykiatrien","Skema 6.17: Art 7.8 Betalinger fra andre regioner",null,null,null,null,0,""]
["Region Sjælland, Voksen psykiatrien","Skema 6.18: Betalinger til selvejende, private og udenlandske sygehuse",null,null,null,null,0,""]
["Region Sjælland, Voksen psykiatrien","Skema 6.19: Dækningsafgift/ejendomsskat",{"$f":"2753+39","v":2792},{"$f":"2710+39","v":2749},{"$f":"2705+27","v":2732},{"$f":"2714+36","v":2750},43,"1,6%"]
["Region Sjælland, Voksen psykiatrien","Skema 6.20: Forsikringer/erstatninger",{"$f":"6012+303","v":6315},{"$f":"4887+305","v":5192},{"$f":"5195+366","v":5561},{"$f":"5474+368","v":5842},1123,"21,6%▲","Bogført udgift"]
["Region Sjælland, Voksen psykiatrien","Skema 6.21: Vederlagsfri Lab. –ydelser og andre ydelser til praksissektoren",null,null,null,null,0,""]
["Region Sjælland, Voksen psykiatrien","Skema 6.22: Patienttransport",129,121,144,99,8,"6,6%"]
["Region Sjælland, Voksen psykiatrien","Skema 6.23: Serviceydelser til/fra andre institutioner eller sygehuse udenfor regionen",null,null,null,null,0,""]
["Region Sjælland, Voksen psykiatrien","Skema 6.24: Udgifter til eksternt finansierede forskning",null,null,null,null,0,""]
["Region Sjælland, Voksen psykiatrien","Skema 6.25: Forebyggelse rettet mod praksissektoren og kommuner",null,null,null,null,0,""]
["Region Sjælland, Voksen psykiatrien","Skema 6.26: Praksisreservelæger",null,null,null,null,0,""]
["Region Sjælland, Voksen psykiatrien","Skema 6.27: Præhospital",null,null,null,null,0,""]
["Region Sjælland, Voksen psykiatrien","Skema 6.28: Udgifter til Danske Regioner (Kontigent, MedCom, Fællesproj.)",377,369,368,567,8,"2,2%"]
["Region Sjælland, Voksen psykiatrien","Skema 6.29: Hospice",null,null,null,null,0,""]
["Region Sjælland, Voksen psykiatrien","Skema 6.30: Konsulenter(Praksis)",null,null,null,null,0,""]
["Region Sjælland, Voksen psykiatrien","Skema 6.31: Videnskabsetisk Komité",null,null,null,null,0,""]
["Region Sjælland, Voksen psykiatrien","Skema 6.32: Tolkebistand",580,583,629,686,-3,"-0,5%"]
["Region Sjælland, Voksen psykiatrien","Skema 6.33: Dansk Center for Partikelterapi",null,null,null,null,{"$f":"IF(ISERROR(C39- D39)=TRUE,\"\",C39 - D39)","v":0},{"$f":"IF(ISERROR((((C39- D39)/D39)*100)=TRUE),\"\",IF((((C39- D39)/D39)*100)<-7,FIXED(((C39- D39)/D39)*100, 1,TRUE) &\"%\" & \"▼\",IF((((C39- D39)/D39)*100)>7,FIXED(((C39- D39)/D39)*100, 1,TRUE) &\"%\" &\"▲\",FIXED(((C39- D39)/D39)*100, 1,TRUE)&\"%\")))","v":""}]
["Region Sjælland, Voksen psykiatrien","Skema 6.34: Politisk organisation – overførte udgifter fra funktion 4.10.01, 4.10.02 og 4.10.04",null,null,null,null,0,""]
["Region Sjælland, Voksen psykiatrien","Skema 6.35: Øvrige udgifter, Region Sjælland",null,null,null,null,0,""]
["Region Sjælland, Voksen psykiatrien","Skema 6.36: Sundhedsydelser ifm. specialsektor",null,null,null,null,0,""]
["Region Sjælland, Voksen psykiatrien","Skema 6.37: Udgifter til primær sundhed fra skema 2",null,null,null,null,0,""]
["Region Sjælland, Voksen psykiatrien","Skema 6.38: Udgifter til primær sundhed fra skema 3",null,null,null,null,0,""]
["Region Sjælland, Voksen psykiatrien","Skema 6.39: Særlige udgifter ifm. COVID-19",0,{"$f":"15958*83.22%","v":13280.247599999999},{"$f":"16766*83.31%","v":13967.7546},3097,-13280.247599999999,"-100,0%▼","Ingen udgifter i 2023"]
["Region Sjælland, Voksen psykiatrien","Skema 6.40: Udleveret udstyr/tilbehør ifm. cochlear implantater",null,null,null,null,0,""]
["Region Sjælland, Voksen psykiatrien","Skema 6.41: Luxturna-behandling, Rigshospitalet",null,null,null,null,0,""]
["Region Sjælland, Voksen psykiatrien","Skema 6.42: Udleveret medicin",16968,{"$f":"19361*83.22%","v":16112.224199999999},{"$f":"19598*83.31%","v":16327.093800000001},null,855.77580000000125,"5,3%"]
["Region Sjælland, Voksen psykiatrien","Skema 6.43: Udgifter ifm. sundhedsklynger",null,null,null,null,0,""]
["Region Sjælland, Voksen psykiatrien","Skema 6.44: Ukrainske patienter under særlov eller asyl",null,null,null,null,0,""]
["Region Sjælland, Voksen psykiatrien","Skema 6.45: Udgifter ifm. de særlige pladser i psykiatrien",35038,null,null,null,35038,"","Direkte udgifter og indirekte udgifter vedr. fællesudgifter, beregnet forholdsmæssigt."]
["Region Sjælland, Voksen psykiatrien","Skema 6.46: Sikringsafdelingen, Region Sjælland",96850,null,null,null,96850,""]
["Region Sjælland, Voksen psykiatrien","Skema 6.47: Øvrige (Kan kun benyttes efter aftale med Sundhedsdatastyrelsen)",null,null,null,null,0,""]
["Region Sjælland, Voksen psykiatrien","Lukkede poster (må kun bruges af Sundhedsdatastyrelsen)",null,null,null,null,0,""]
["Region Sjælland, Voksen psykiatrien","I alt",{"$f":"SUMIFS((C7:C54),(A7:A54),A55)","v":168357},{"$f":"SUMIFS((D7:D54),(A7:A54),A55)","v":49035.471799999999},{"$f":"SUMIFS((E7:E54),(A7:A54),A55)","v":49021.848400000003},{"$f":"SUMIFS((F7:F54),(A7:A54),A55)","v":22624},119321.5282,"243,3%▲"]
["Region Sjælland, Børn-unge psykiatrien",null,null,null,null,null,0,""]
["Region Sjælland, Børn-unge psykiatrien","Skema 6.1: Center for voldsramte (Bispebjerg)",null,null,null,null,0,""]
["Region Sjælland, Børn-unge psykiatrien","Skema 6.2: Ventilatørbistand i hjemmet, respiratorpatienter",null,null,null,null,0,""]
["Region Sjælland, Børn-unge psykiatrien","Skema 6.3: Blodprøvetagning i eget hjem",null,null,null,null,0,""]
["Region Sjælland, Børn-unge psykiatrien","Skema 6.4: Psykinfo + pårørende",{"$f":"1805+86","v":1891},{"$f":"1929+214","v":2143},{"$f":"1860+2","v":1862},{"$f":"1687+94","v":1781},-252,"-11,8%▼","Almindelige udsving"]
["Region Sjælland, Børn-unge psykiatrien","Skema 6.5: Leveret udstyr til patienter i eget hjem, ilt og sonderemedier",null,null,null,null,0,""]
["Region Sjælland, Børn-unge psykiatrien","Skema 6.6: Montebello (Nordsjællands Hospitaler)",null,null,null,null,0,""]
["Region Sjælland, Børn-unge psykiatrien","Skema 6.7: Satspulje korrektioner mellem år",null,null,null,null,0,""]
["Region Sjælland, Børn-unge psykiatrien","Skema 6.8: Klinisk farmakologisk rådgivning af praksissektoren",null,null,null,null,0,""]
["Region Sjælland, Børn-unge psykiatrien","Skema 6.9: Tandregulering ifm. operation",null,null,null,null,0,""]
["Region Sjælland, Børn-unge psykiatrien","Skema 6.10: Giftlinjen",null,null,null,null,0,""]
["Region Sjælland, Børn-unge psykiatrien","Skema 6.11: Tjenestemandspensioner",null,null,null,null,0,""]
["Region Sjælland, Børn-unge psykiatrien","Skema 6.12: Art 4.6 Betalinger til staten",null,null,null,null,0,""]
["Region Sjælland, Børn-unge psykiatrien","Skema 6.13: Art 4.7 Betalinger til kommuner",null,null,null,null,0,""]
["Region Sjælland, Børn-unge psykiatrien","Skema 6.14: Art 4.8 Betalinger til andre regioner",null,null,null,null,0,""]
["Region Sjælland, Børn-unge psykiatrien","Skema 6.15: Art 7.6 Betalinger fra staten",null,null,null,null,{"$f":"IF(ISERROR(C71- D71)=TRUE,\"\",C71 - D71)","v":0},{"$f":"IF(ISERROR((((C71- D71)/D71)*100)=TRUE),\"\",IF((((C71- D71)/D71)*100)<-7,FIXED(((C71- D71)/D71)*100, 1,TRUE) &\"%\" & \"▼\",IF((((C71- D71)/D71)*100)>7,FIXED(((C71- D71)/D71)*100, 1,TRUE) &\"%\" &\"▲\",FIXED(((C71- D71)/D71)*100, 1,TRUE)&\"%\")))","v":""}]
["Region Sjælland, Børn-unge psykiatrien","Skema 6.16: Art 7.7 Betalinger fra kommuner",null,null,null,null,0,""]
["Region Sjælland, Børn-unge psykiatrien","Skema 6.17: Art 7.8 Betalinger fra andre regioner",null,null,null,null,0,""]
["Region Sjælland, Børn-unge psykiatrien","Skema 6.18: Betalinger til selvejende, private og udenlandske sygehuse",null,null,null,null,0,""]
["Region Sjælland, Børn-unge psykiatrien","Skema 6.19: Dækningsafgift/ejendomsskat",{"$f":"559+8","v":567},{"$f":"546+8","v":554},{"$f":"542+6","v":548},{"$f":"504+7","v":511},13,"2,3%"]
["Region Sjælland, Børn-unge psykiatrien","Skema 6.20: Forsikringer/erstatninger",{"$f":"1215+62","v":1277},{"$f":"979+62","v":1041},{"$f":"1035+73","v":1108},{"$f":"970+68","v":1038},236,"22,7%▲","Bogført udgift"]
["Region Sjælland, Børn-unge psykiatrien","Skema 6.21: Vederlagsfri Lab. –ydelser og andre ydelser til praksissektoren",null,null,null,null,0,""]
["Region Sjælland, Børn-unge psykiatrien","Skema 6.22: Patienttransport",9,null,8,7,9,""]
["Region Sjælland, Børn-unge psykiatrien","Skema 6.23: Serviceydelser til/fra andre institutioner eller sygehuse udenfor regionen",null,null,null,null,0,""]
["Region Sjælland, Børn-unge psykiatrien","Skema 6.24: Udgifter til eksternt finansierede forskning",null,null,null,null,0,""]
["Region Sjælland, Børn-unge psykiatrien","Skema 6.25: Forebyggelse rettet mod praksissektoren og kommuner",null,null,null,null,0,""]
["Region Sjælland, Børn-unge psykiatrien","Skema 6.26: Praksisreservelæger",null,null,null,null,0,""]
["Region Sjælland, Børn-unge psykiatrien","Skema 6.27: Præhospital",null,null,null,null,0,""]
["Region Sjælland, Børn-unge psykiatrien","Skema 6.28: Udgifter til Danske Regioner (Kontigent, MedCom, Fællesproj.)",77,74,74,105,3,"4,1%"]
["Region Sjælland, Børn-unge psykiatrien","Skema 6.29: Hospice",null,null,null,null,0,""]
["Region Sjælland, Børn-unge psykiatrien","Skema 6.30: Konsulenter(Praksis)",null,null,null,null,0,""]
["Region Sjælland, Børn-unge psykiatrien","Skema 6.31: Videnskabsetisk Komité",null,null,null,null,0,""]
["Region Sjælland, Børn-unge psykiatrien","Skema 6.32: Tolkebistand",81,81,87,71,0,"0,0%"]
["Region Sjælland, Børn-unge psykiatrien","Skema 6.33: Dansk Center for Partikelterapi",null,null,null,null,0,""]
["Region Sjælland, Børn-unge psykiatrien","Skema 6.34: Politisk organisation – overførte udgifter fra funktion 4.10.01, 4.10.02 og 4.10.04",null,null,null,null,0,""]
["Region Sjælland, Børn-unge psykiatrien","Skema 6.35: Øvrige udgifter, Region Sjælland",null,null,null,null,0,""]
["Region Sjælland, Børn-unge psykiatrien","Skema 6.36: Sundhedsydelser ifm. specialsektor",null,null,null,null,0,""]
["Region Sjælland, Børn-unge psykiatrien","Skema 6.37: Udgifter til primær sundhed fra skema 2",null,null,null,null,0,""]
["Region Sjælland, Børn-unge psykiatrien","Skema 6.38: Udgifter til primær sundhed fra skema 3",null,null,null,null,0,""]
["Region Sjælland, Børn-unge psykiatrien","Skema 6.39: Særlige udgifter ifm. COVID-19",null,{"$f":"15958*16.78%","v":2677.7523999999999},{"$f":"16766*16.69%","v":2798.2454000000002},575,-2677.7523999999999,"-100,0%▼","Ingen udgifter i 2023"]
["Region Sjælland, Børn-unge psykiatrien","Skema 6.40: Udleveret udstyr/tilbehør ifm. cochlear implantater",null,null,null,null,0,""]
["Region Sjælland, Børn-unge psykiatrien","Skema 6.41: Luxturna-behandling, Rigshospitalet",null,null,null,null,0,""]
["Region Sjælland, Børn-unge psykiatrien","Skema 6.42: Udleveret medicin",3448,{"$f":"19361*16.78%","v":3248.7757999999999},{"$f":"19598*16.69%","v":3270.9062000000004},null,199.22420000000011,"6,1%","jfr.liste APO "]
["Region Sjælland, Børn-unge psykiatrien","Skema 6.43: Udgifter ifm. sundhedsklynger",null,null,null,null,0,""]
["Region Sjælland, Børn-unge psykiatrien","Skema 6.44: Ukrainske patienter under særlov eller asyl",null,null,null,null,0,""]
["Region Sjælland, Børn-unge psykiatrien","Skema 6.45: Udgifter ifm. de særlige pladser i psykiatrien",null,null,null,null,0,""]
["Region Sjælland, Børn-unge psykiatrien","Skema 6.46: Sikringsafdelingen, Region Sjælland",null,null,null,null,0,""]
["Region Sjælland, Børn-unge psykiatrien","Skema 6.47: Øvrige (Kan kun benyttes efter aftale med Sundhedsdatastyrelsen)",null,null,null,null,{"$f":"IF(ISERROR(C103- D103)=TRUE,\"\",C103 - D103)","v":0},{"$f":"IF(ISERROR((((C103- D103)/D103)*100)=TRUE),\"\",IF((((C103- D103)/D103)*100)<-7,FIXED(((C103- D103)/D103)*100, 1,TRUE) &\"%\" & \"▼\",IF((((C103- D103)/D103)*100)>7,FIXED(((C103- D103)/D103)*100, 1,TRUE) &\"%\" &\"▲\",FIXED(((C103- D103)/D103)*100, 1,TRUE)&\"%\")))","v":""}]
["Region Sjælland, Børn-unge psykiatrien","Lukkede poster (må kun bruges af Sundhedsdatastyrelsen)",null,null,null,null,0,""]
["Region Sjælland, Børn-unge psykiatrien","I alt",{"$f":"SUMIFS((C7:C104),(A7:A104),A105)","v":7350},{"$f":"SUMIFS((D7:D104),(A7:A104),A105)","v":9819.5281999999988},{"$f":"SUMIFS((E7:E104),(A7:A104),A105)","v":9756.1516000000011},{"$f":"SUMIFS((F7:F104),(A7:A104),A105)","v":4088},-2469.5281999999988,"-25,1%▼"]
["Ikke fordelte udgifter i Region Sjælland, psykiatri",null,null,null,null,null,0,""]
["Ikke fordelte udgifter i Region Sjælland, psykiatri","Skema 6.1: Center for voldsramte (Bispebjerg)",null,null,null,null,0,""]
["Ikke fordelte udgifter i Region Sjælland, psykiatri","Skema 6.2: Ventilatørbistand i hjemmet, respiratorpatienter",null,null,null,null,0,""]
["Ikke fordelte udgifter i Region Sjælland, psykiatri","Skema 6.3: Blodprøvetagning i eget hjem",null,null,null,null,0,""]
["Ikke fordelte udgifter i Region Sjælland, psykiatri","Skema 6.4: Psykinfo + pårørende",null,null,null,null,0,""]
["Ikke fordelte udgifter i Region Sjælland, psykiatri","Skema 6.5: Leveret udstyr til patienter i eget hjem, ilt og sonderemedier",null,null,null,null,0,""]
["Ikke fordelte udgifter i Region Sjælland, psykiatri","Skema 6.6: Montebello (Nordsjællands Hospitaler)",null,null,null,null,0,""]
["Ikke fordelte udgifter i Region Sjælland, psykiatri","Skema 6.7: Satspulje korrektioner mellem år",null,null,null,null,0,""]
["Ikke fordelte udgifter i Region Sjælland, psykiatri","Skema 6.8: Klinisk farmakologisk rådgivning af praksissektoren",null,null,null,null,0,""]
["Ikke fordelte udgifter i Region Sjælland, psykiatri","Skema 6.9: Tandregulering ifm. operation",null,null,null,null,0,""]
["Ikke fordelte udgifter i Region Sjælland, psykiatri","Skema 6.10: Giftlinjen",null,null,null,null,0,""]
["Ikke fordelte udgifter i Region Sjælland, psykiatri","Skema 6.11: Tjenestemandspensioner",null,null,null,null,0,""]
["Ikke fordelte udgifter i Region Sjælland, psykiatri","Skema 6.12: Art 4.6 Betalinger til staten",null,null,null,null,0,""]
["Ikke fordelte udgifter i Region Sjælland, psykiatri","Skema 6.13: Art 4.7 Betalinger til kommuner",null,null,null,null,0,""]
["Ikke fordelte udgifter i Region Sjælland, psykiatri","Skema 6.14: Art 4.8 Betalinger til andre regioner",39172.239950000003,84614.141879999996,80911.777390000003,58242.432460000004,-45441.901929999993,"-53,7%▼","Fald i udgifter skyldes primært regulering vedr. tidligere år på højt specialiseret samt udenregional basisbehandling"]
["Ikke fordelte udgifter i Region Sjælland, psykiatri","Skema 6.15: Art 7.6 Betalinger fra staten",null,null,null,null,0,""]
["Ikke fordelte udgifter i Region Sjælland, psykiatri","Skema 6.16: Art 7.7 Betalinger fra kommuner",-34670.166799999999,-25942.18,-28322.956969999999,-34104.067900000002,-8727.9867999999988,"33,6%▲","Stigning vedr. primært takstindtægter på kommunal finansiering"]
["Ikke fordelte udgifter i Region Sjælland, psykiatri","Skema 6.17: Art 7.8 Betalinger fra andre regioner",-101815.436,-88099.870500000005,-95543.228499999997,-95371.804959999994,-13715.565499999997,"15,6%▲","Stigning i takstindtægter på Sikringen samt psykiatriske fritvalgs-patienter"]
["Ikke fordelte udgifter i Region Sjælland, psykiatri","Skema 6.18: Betalinger til selvejende, private og udenlandske sygehuse",3220.6681600000002,2729.3002999999999,4085.6853099999998,4139.6459999999997,491.36786000000029,"18,0%▲","Skyldes en stigning i udgifterne til rehabilitering af torturofre"]
["Ikke fordelte udgifter i Region Sjælland, psykiatri","Skema 6.19: Dækningsafgift/ejendomsskat",null,null,null,null,0,""]
["Ikke fordelte udgifter i Region Sjælland, psykiatri","Skema 6.20: Forsikringer/erstatninger",null,null,null,null,0,""]
["Ikke fordelte udgifter i Region Sjælland, psykiatri","Skema 6.21: Vederlagsfri Lab. –ydelser og andre ydelser til praksissektoren",null,null,null,null,0,""]
["Ikke fordelte udgifter i Region Sjælland, psykiatri","Skema 6.22: Patienttransport",null,null,null,null,0,""]
["Ikke fordelte udgifter i Region Sjælland, psykiatri","Skema 6.23: Serviceydelser til/fra andre institutioner eller sygehuse udenfor regionen",null,null,null,null,0,""]
["Ikke fordelte udgifter i Region Sjælland, psykiatri","Skema 6.24: Udgifter til eksternt finansierede forskning",null,null,null,null,0,""]
["Ikke fordelte udgifter i Region Sjælland, psykiatri","Skema 6.25: Forebyggelse rettet mod praksissektoren og kommuner",null,null,null,null,0,""]
["Ikke fordelte udgifter i Region Sjælland, psykiatri","Skema 6.26: Praksisreservelæger",null,null,null,null,0,""]
["Ikke fordelte udgifter i Region Sjælland, psykiatri","Skema 6.27: Præhospital",null,null,null,null,0,""]
["Ikke fordelte udgifter i Region Sjælland, psykiatri","Skema 6.28: Udgifter til Danske Regioner (Kontigent, MedCom, Fællesproj.)",null,null,null,null,0,""]
["Ikke fordelte udgifter i Region Sjælland, psykiatri","Skema 6.29: Hospice",null,null,null,null,{"$f":"IF(ISERROR(C135- D135)=TRUE,\"\",C135 - D135)","v":0},{"$f":"IF(ISERROR((((C135- D135)/D135)*100)=TRUE),\"\",IF((((C135- D135)/D135)*100)<-7,FIXED(((C135- D135)/D135)*100, 1,TRUE) &\"%\" & \"▼\",IF((((C135- D135)/D135)*100)>7,FIXED(((C135- D135)/D135)*100, 1,TRUE) &\"%\" &\"▲\",FIXED(((C135- D135)/D135)*100, 1,TRUE)&\"%\")))","v":""}]
["Ikke fordelte udgifter i Region Sjælland, psykiatri","Skema 6.30: Konsulenter(Praksis)",null,null,null,null,0,""]
["Ikke fordelte udgifter i Region Sjælland, psykiatri","Skema 6.31: Videnskabsetisk Komité",null,null,null,null,0,""]
["Ikke fordelte udgifter i Region Sjælland, psykiatri","Skema 6.32: Tolkebistand",null,null,null,null,0,""]
["Ikke fordelte udgifter i Region Sjælland, psykiatri","Skema 6.33: Dansk Center for Partikelterapi",null,null,null,null,0,""]
["Ikke fordelte udgifter i Region Sjælland, psykiatri","Skema 6.34: Politisk organisation – overførte udgifter fra funktion 4.10.01, 4.10.02 og 4.10.04",null,null,null,null,0,""]
["Ikke fordelte udgifter i Region Sjælland, psykiatri","Skema 6.35: Øvrige udgifter, Region Sjælland",null,null,null,null,0,""]
["Ikke fordelte udgifter i Region Sjælland, psykiatri","Skema 6.36: Sundhedsydelser ifm. specialsektor",null,null,null,null,0,""]
["Ikke fordelte udgifter i Region Sjælland, psykiatri","Skema 6.37: Udgifter til primær sundhed fra skema 2",1274.7925947802801,null,null,null,1274.7925947802801,"","Administrative covid-udgifter"]
["Ikke fordelte udgifter i Region Sjælland, psykiatri","Skema 6.38: Udgifter til primær sundhed fra skema 3",null,null,null,null,0,""]
["Ikke fordelte udgifter i Region Sjælland, psykiatri","Skema 6.39: Særlige udgifter ifm. COVID-19",null,2428.5900333014301,3116.1287600000001,1946.24668,-2428.5900333014301,"-100,0%▼","Ikke relevant længere"]
["Ikke fordelte udgifter i Region Sjælland, psykiatri","Skema 6.40: Udleveret udstyr/tilbehør ifm. cochlear implantater",null,null,null,null,0,""]
["Ikke fordelte udgifter i Region Sjælland, psykiatri","Skema 6.41: Luxturna-behandling, Rigshospitalet",null,null,null,null,0,""]
["Ikke fordelte udgifter i Region Sjælland, psykiatri","Skema 6.42: Udleveret medicin",null,null,null,null,0,""]
["Ikke fordelte udgifter i Region Sjælland, psykiatri","Skema 6.43: Udgifter ifm. sundhedsklynger",null,null,null,null,0,""]
["Ikke fordelte udgifter i Region Sjælland, psykiatri","Skema 6.44: Ukrainske patienter under særlov eller asyl",null,null,null,null,0,""]
["Ikke fordelte udgifter i Region Sjælland, psykiatri","Skema 6.45: Udgifter ifm. de særlige pladser i psykiatrien",null,null,null,null,0,""]
["Ikke fordelte udgifter i Region Sjælland, psykiatri","Skema 6.46: Sikringsafdelingen, Region Sjælland",null,null,null,null,0,""]
["Ikke fordelte udgifter i Region Sjælland, psykiatri","Skema 6.47: Øvrige (Kan kun benyttes efter aftale med Sundhedsdatastyrelsen)",null,null,null,null,0,""]
["Ikke fordelte udgifter i Region Sjælland, psykiatri","Lukkede poster (må kun bruges af Sundhedsdatastyrelsen)",null,null,null,null,0,""]
["Ikke fordelte udgifter i Region Sjælland, psykiatri","I alt",{"$f":"SUMIFS((C7:C154),(A7:A154),A155)","v":-92817.902095219717},{"$f":"SUMIFS((D7:D154),(A7:A154),A155)","v":-24270.018286698582},{"$f":"SUMIFS((E7:E154),(A7:A154),A155)","v":-35752.594009999993},{"$f":"SUMIFS((F7:F154),(A7:A154),A155)","v":-65147.547720000002},-68547.883808521132,"282,4%▲"]

{"sheet":"Skema 7","index":6,"n_rows":12,"n_cols":13,"rows_kept":12,"cut":false,"hidden":false,"merged":[[4,1,4,2],[1,1,2,8],[4,4,4,5],[4,7,4,8],[4,10,4,11]]}
["Region Sjælland, psykiatriske sygehuse."]
[null,"Skema 7: Vederlagsfrie ydelser mellem sygehusene. (1.000 kr.)"]
[]
[]
["Sygehus",2023,null,2023,2022,null,2022,2021,null,2021,2020,null,2020]
[null,"Leverede","Modtagne","Lev. - Mod.","Leverede","Modtagne","Lev. - Mod.","Leverede","Modtagne","Lev. - Mod.","Leverede","Modtagne","Lev. - Mod."]
["Region Sjælland. Voksen psykiatrien",null,7031,{"$f":"$B$7-$C$7","v":-7031},null,7520,{"$f":"$E$7-$F$7","v":-7520},null,{"$f":"8698*83.31%","v":7246.3038000000006},{"$f":"$H$7-$I$7","v":-7246.3038000000006},null,{"$f":"8482*84.33%","v":7152.8705999999993},{"$f":"$K$7-$L$7","v":-7152.8705999999993}]
["Region Sjælland. Børn-unge psykiatrien",null,1429,{"$f":"$B$8-$C$8","v":-1429},null,1516,{"$f":"$E$8-$F$8","v":-1516},null,{"$f":"8698*16.69%","v":1451.6962000000001},{"$f":"$H$8-$I$8","v":-1451.6962000000001},null,{"$f":"8482*15.67%","v":1329.1294},{"$f":"$K$8-$L$8","v":-1329.1294}]
["Ikke fordelte udgifter i Region Sjælland, psykiatri",null,null,{"$f":"$B$9-$C$9","v":0},null,null,{"$f":"$E$9-$F$9","v":0},null,null,{"$f":"$H$9-$I$9","v":0},null,null,{"$f":"$K$9-$L$9","v":0}]
["I alt",{"$f":"SUM(B7:B9)","v":0},{"$f":"SUM(C7:C9)","v":8460},{"$f":"SUM(D7:D9)","v":-8460},{"$f":"SUM(E7:E9)","v":0},9036,-9036,0,8698,-8698,{"$f":"SUM(K7:K9)","v":0},8482,-8482]
[]
["NB: Afstem med somatikken"]

{"sheet":"Rapport","index":7,"n_rows":99,"n_cols":6,"rows_kept":99,"cut":false,"hidden":false,"merged":[]}
[]
[null,"Skema 1: Udgifter og indtægter på sygehusene/enhederne, eksklusiv omkostningssted 0001, Fælleskonto. (1.000 kr.)"]
[null,null,2023,2022,2021,2020]
[null,"Hovedart 1: Lønninger",0,1130515,1068474,1020577]
[null,"Hovedart 2: Varekøb",0,42621,43678,53192]
[null,"Hovedart 4: Tjenesteydelser m.v. ",0,197456,203743,192656]
[null,"Hovedart 5: Tilskud og overførsler",0,224,47,168]
[null,"Hovedart 6: Finansudgifter",0,0,0,-165]
[null,"Hovedart 7: Indtægter",0,-33902,-35239,-35448]
[null,"Hovedart 8: Finansindtægter",0,0,0,0]
[null,"Hovedart 9: Interne udgifter og indtægter",0,81208,80192,82984]
[null,"I alt",0,1418122,1360895,1313964]
[]
[null,"Skema 2: Fællesudgifter og -indtægter vedrørende sygehusene.\n(1.000 kr.)"]
[null,null,2023,2022,2021,2020]
[null,"Hovedart 1: Lønninger",0,44631.63568618866,53789.461600000002,50703.726890000005]
[null,"Hovedart 2: Varekøb",0,164128.02963585939,160645.23192999998,161458.57267999998]
[null,"Hovedart 4: Tjenesteydelser m.v. ",0,142116.30640736947,141159.73705,115805.07313]
[null,"Hovedart 5: Tilskud og overførsler",0,0,158.26206519965939,159.20407]
[null,"Hovedart 6: Finansudgifter",0,0,0,-21.297150000000002]
[null,"Hovedart 7: Indtægter",0,-133485.89720282395,-144566.45412429521,-146922.96263999998]
[null,"Hovedart 8: Finansindtægter",0,0,0,0]
[null,"Hovedart 9: Interne udgifter og indtægter",0,-182875.31133024761,-187850.2232337055,-190217.91524999999]
[null,"I alt",0,34514.763196345979,23336.015287198963,-9035.5982699999586]
[]
[null,"Skema 3:Regionale fællesudgifter og -indtægter. (1.000 kr.)"]
[null,null,2023,2022,2021,2020]
[null,"1.70.50: Andel af fællesudgifter",0,78120.023150698602,73415.146540000002,70588.343760000003]
[null,"1.60.40: Andel af central administration af sundhed (til og med 2019)",0,0,0,0]
[null,"1.60.41: Andel af øvrige udgifter og indtægter",0,0,0,0]
[null,"1.50.33: Andel af central administration af sundhed (ekskl. psykiatri)",0,0,0,0]
[null,"1.50.35: Administration af det psykiatriske område (kun central del)",0,0,0,0]
[null,"I alt",0,78120.023150698602,73415.146540000002,70588.343760000003]
[]
[null,"Skema 4: Udgifter og indtægter til og fra psykiatriske afdelinger konteret på somatiske sygehuse. (1.000 kr.)"]
[null,null,2023,2022,2021,2020]
[null,"Korrektion",0,0,0,0]
[null,"Lønudg. på psyk. afd.,somatiske sygehuse",0,0,0,0]
[null,"Øvrige udg. til psyk. afd.,somatiske sygehuse",0,0,0,0]
[null,"I alt",0,0,0,0]
[]
[null,"Skema 5: Leasing- og huslejeudgifter. (1.000 kr.)"]
[null,null,2023,2022,2021,2020]
[null,"Andre udgifter",0,0,0,0]
[null,"Leasing- og lejeudgifter",0,2863,1007,1035]
[null,"Huslejeudgifter",0,7761,6750,5330]
[null,"I alt",0,10624,7757,6365]
[]
[null,"Skema 6: Udgifter til andet end patientbehandling. (1.000 kr.)"]
[null,null,2023,2022,2021,2020]
[null,"Skema 6.1: Center for voldsramte (Bispebjerg)",0,0,0,0]
[null,"Skema 6.2: Ventilatørbistand i hjemmet, respiratorpatienter",0,0,0,0]
[null,"Skema 6.3: Blodprøvetagning i eget hjem",0,0,0,0]
[null,"Skema 6.4: Psykinfo + pårørende",0,12772,11155,11364]
[null,"Skema 6.5: Leveret udstyr til patienter i eget hjem, ilt og sonderemedier",0,0,0,0]
[null,"Skema 6.6: Montebello (Nordsjællands Hospitaler)",0,0,0,0]
[null,"Skema 6.7: Satspulje korrektioner mellem år",0,0,0,0]
[null,"Skema 6.8: Klinisk farmakologisk rådgivning af praksissektoren",0,0,0,0]
[null,"Skema 6.9: Tandregulering ifm. operation",0,0,0,0]
[null,"Skema 6.10: Giftlinjen",0,0,0,0]
[null,"Skema 6.11: Tjenestemandspensioner",0,0,0,0]
[null,"Skema 6.12: Art 4.6 Betalinger til staten",0,0,0,0]
[null,"Skema 6.13: Art 4.7 Betalinger til kommuner",0,0,0,0]
[null,"Skema 6.14: Art 4.8 Betalinger til andre regioner",0,84614.141879999996,80911.777390000003,58242.432460000004]
[null,"Skema 6.15: Art 7.6 Betalinger fra staten",0,0,0,0]
[null,"Skema 6.16: Art 7.7 Betalinger fra kommuner",0,-25942.18,-28322.956969999999,-34104.067900000002]
[null,"Skema 6.17: Art 7.8 Betalinger fra andre regioner",0,-88099.870500000005,-95543.228499999997,-95371.804959999994]
[null,"Skema 6.18: Betalinger til selvejende, private og udenlandske sygehuse",0,2729.3002999999999,4085.6853099999998,4139.6459999999997]
[null,"Skema 6.19: Dækningsafgift/ejendomsskat",0,3303,3280,3261]
[null,"Skema 6.20: Forsikringer/erstatninger",0,6233,6669,6880]
[null,"Skema 6.21: Vederlagsfri Lab. –ydelser og andre ydelser til praksissektoren",0,0,0,0]
[null,"Skema 6.22: Patienttransport",0,121,152,106]
[null,"Skema 6.23: Serviceydelser til/fra andre institutioner eller sygehuse udenfor regionen",0,0,0,0]
[null,"Skema 6.24: Udgifter til eksternt finansierede forskning",0,0,0,0]
[null,"Skema 6.25: Forebyggelse rettet mod praksissektoren og kommuner",0,0,0,0]
[null,"Skema 6.26: Praksisreservelæger",0,0,0,0]
[null,"Skema 6.27: Præhospital",0,0,0,0]
[null,"Skema 6.28: Udgifter til Danske Regioner (Kontigent, MedCom, Fællesproj.)",0,443,442,672]
[null,"Skema 6.29: Hospice",0,0,0,0]
[null,"Skema 6.30: Konsulenter(Praksis)",0,0,0,0]
[null,"Skema 6.31: Videnskabsetisk Komité",0,0,0,0]
[null,"Skema 6.32: Tolkebistand",0,664,716,757]
[null,"Skema 6.33: Dansk Center for Partikelterapi",0,0,0,0]
[null,"Skema 6.34: Politisk organisation – overførte udgifter fra funktion 4.10.01, 4.10.02 og 4.10.04",0,0,0,0]
[null,"Skema 6.35: Øvrige udgifter, Region Sjælland",0,0,0,0]
[null,"Skema 6.36: Sundhedsydelser ifm. specialsektor",0,0,0,0]
[null,"Skema 6.37: Udgifter til primær sundhed fra skema 2",0,0,0,0]
[null,"Skema 6.38: Udgifter til primær sundhed fra skema 3",0,0,0,0]
[null,"Skema 6.39: Særlige udgifter ifm. COVID-19",0,18386.590033301429,19882.12876,5618.2466800000002]
[null,"Skema 6.40: Udleveret udstyr/tilbehør ifm. cochlear implantater",0,0,0,0]
[null,"Skema 6.41: Luxturna-behandling, Rigshospitalet",0,0,0,0]
[null,"Skema 6.42: Udleveret medicin",0,19361,19598,0]
[null,"Skema 6.43: Udgifter ifm. sundhedsklynger",0,0,0,0]
[null,"Skema 6.44: Ukrainske patienter under særlov eller asyl",0,0,0,0]
[null,"Skema 6.45: Udgifter ifm. de særlige pladser i psykiatrien",0,0,0,0]
[null,"Skema 6.46: Sikringsafdelingen, Region Sjælland",0,0,0,0]
[null,"Skema 6.47: Øvrige (Kan kun benyttes efter aftale med Sundhedsdatastyrelsen)",0,0,0,0]
[null,"Lukkede poster (må kun bruges af Sundhedsdatastyrelsen)",0,0,0,0]
[null,"I alt",0,34584.981713301415,23025.405990000007,-38435.547720000002]

{"sheet":"Rapport SGH","index":8,"n_rows":9,"n_cols":9,"rows_kept":9,"cut":false,"hidden":false,"merged":[]}
[2023,"Skema 1","Skema 2","Skema 3","Skema 4","Skema 5","Skema 6","Skema 7","I alt"]
["Region Sjælland, Voksen psykiatrien",0,0,0,0,0,0,0,{"$f":"SUM(B2:D2)-SUM(E2:H2)","v":0}]
["Region Sjælland, Børn-unge psykiatrien",0,0,0,0,0,0,0,{"$f":"SUM(B3:D3)-SUM(E3:H3)","v":0}]
["Ikke fordelte udgifter i Region Sjælland, psykiatri",0,0,0,0,0,0,0,0]
[]
[2022]
["Region Sjælland, Voksen psykiatrien",1180225,48920.695150189713,65073.261732575498,0,9527,49035.471799999999,-7520,{"$f":"SUM(B7:D7)-SUM(E7:H7)","v":1243176.4850827653}]
["Region Sjælland, Børn-unge psykiatrien",237897,9864.086332854793,13046.7614181231,0,1097,9819.5281999999988,-1516,251407.31955097787]
["Ikke fordelte udgifter i Region Sjælland, psykiatri",0,-24270.018286698527,0,0,0,-24270.018286698582,0,5.4569682106375694E-11]

{"sheet":"Afstemning af ikke fordelte","index":9,"n_rows":9,"n_cols":2,"rows_kept":9,"cut":false,"hidden":false,"merged":[]}
["Afstemning af Ikke fordelte indtægter- og udgifter"]
["1.000 kr.","2023"]
["Skema 1",0]
["Skema 2",0]
["Skema 3",0]
["Skema 4",0]
["Skema 5",0]
["Skema 6",0]
["1+2+3-4-5-6",{"$f":"+B3+B4+B5-B6-B7-B8","v":0}]